Cogmind - Beta 14 *** ADVENTURER MODE // 2024.08.14 @ 17:28:01 Player: KURIIRI Result: Self-destructed Performance ------------- Evolutions (3) 1500 Regions Visited (5) 1000 Robots Destroyed (30) 150 Value Destroyed (698) 698 Prototype IDs (4) 80 Alien Tech Used (0) 0 Bonus (0) 0 TOTAL SCORE: 3428 Bonus ------- None Cogmind --------- Core Integrity 665/700 Matter 300/300 Energy 262/290 System Corruption 3% Temperature Warning (309) Movement Treading (240) Ox1 Location -7/Factory Parts ------- > --- POWER (2) -------- Ion Engine Light Deuterium Engine > --- PROPULSION (4) --- Light Treads Light Treads Light Treads > --- UTILITY (4) ------ Medium Storage Unit Large Storage Unit Subdweller Optics Medium Armor Plating > --- WEAPON (3) ------- Heavy EM Shotgun Heavy EM Shotgun EM Pulse Cannon > --- INVENTORY (15) --- Subdweller Power Source Light Deuterium Engine Carbon-fiber Leg Wheel Compact Wheel Advanced Heat Sink Hacking Suite Heavy Assault Rifle Heavy Assault Rifle Heavy Assault Rifle Battle Cannon EMP Trap Peak State ------------ > --- POWER ------------ Ion Engine Light Deuterium Engine > --- PROPULSION ------- Light Treads Light Treads Light Treads > --- UTILITY ---------- Medium Storage Unit Large Storage Unit Subdweller Optics Medium Armor Plating > --- WEAPON ----------- Heavy EM Shotgun Heavy EM Shotgun Ripper > --- INVENTORY -------- Subdweller Power Source Light Deuterium Engine Carbon-fiber Leg Wheel Compact Wheel Advanced Heat Sink Hacking Suite EM Pulse Cannon Heavy Assault Rifle Heavy Assault Rifle Heavy Assault Rifle Battle Cannon EMP Trap [Rating: 28] Favorites ----------- Power Ion Engine Engine Ion Engine Propulsion Compact Wheel Treads Light Treads Wheel Compact Wheel Utility Medium Storage Unit Device Subdweller Optics Storage Medium Storage Unit Processor Signal Interpreter Protection Medium Armor Plating Weapon Heavy Assault Rifle Energy Gun Heavy EM Shotgun Energy Cannon EM Pulse Cannon Ballistic Gun Heavy Assault Rifle Ballistic Cannon Battle Cannon Special Weapon Flamer Slashing Weapon Ripper Build | -11 -10 -10 -10 -8 -7 ------- Run | Yrd Mat Min Sub Mat Fac Slots Evolved 6 | . . . . 4 2 Power 1 | . . . . . 1 Propulsion 2 | . . . . 1 1 Utility 2 | . . . . 2 . Weapon 1 | . . . . 1 . Parts Attached 33 | 5 5 1 9 10 3 Power 6 | 1 . . 2 1 2 Engine 6 | 1 . . 2 1 2 Core . | . . . . . . Reactor . | . . . . . . Propulsion 6 | 2 1 . 1 2 . Treads 3 | . . . 1 2 . Leg . | . . . . . . Wheel 3 | 2 1 . . . . Hover . | . . . . . . Flight . | . . . . . . Utility 7 | 1 1 1 2 2 . Device 2 | . . . 2 . . Storage 3 | 1 . 1 . 1 . Processor 1 | . 1 . . . . Hackware . | . . . . . . Protection 1 | . . . . 1 . Artifact . | . . . . . . Weapon 14 | 1 3 . 4 5 1 Energy Gun 4 | 1 1 . . 2 . Energy Cannon 1 | . . . . . 1 Ballistic Gun 4 | . 2 . 2 . . Ballistic Cannon 1 | . . . . 1 . Launcher . | . . . . . . Special Weapon 2 | . . . 2 . . Impact Weapon . | . . . . . . Slashing Weapon 2 | . . . . 2 . Piercing Weapon . | . . . . . . Special Melee Weapon . | . . . . . . Unidentified Prototypes 1 | . . . . 1 . Parts Lost 7 | . . . 6 . 1 Power 1 | . . . 1 . . Propulsion 2 | . . . 2 . . Utility 1 | . . . 1 . . Weapon 3 | . . . 2 . 1 Highest Loss Streak 6 | . . . 6 . 1 To Critical Strikes 1 | . . . 1 . . Average Slot Usage (%) 94 | . 97 100 88 89 89 Engine 12 | . 14 14 13 8 12 Treads 7 | . . . 5 22 23 Wheel 17 | . 28 28 14 . . Device 4 | . . . 10 9 7 Storage 14 | . 14 14 14 17 15 Processor 7 | . 11 14 1 . . Protection 1 | . . . . 4 7 Energy Gun 4 | . 7 . . 8 15 Ballistic Gun 17 | . 20 28 15 6 . Special Weapon 1 | . . . 11 . . Slashing Weapon 1 | . . . . 7 2 Peak Build Rating 28 | 5 10 10 12 24 28 Average Rating 13 | 3 8 10 10 19 25 On Entrance 10 | . 5 10 10 12 24 Naked Turns . | . . . . . . Heaviest Build 63 | 12 16 21 23 55 63 Greatest Support 60 | 26 32 32 32 60 60 Greatest Overweight (x) 1 | . . . 1 1 1 Average Overweight (x) . | . . . . . . Largest Inventory Capacity 15 | 8 8 10 10 15 15 Average Capacity 10 | 6 8 9 10 14 15 Most Carried 14 | 6 8 10 10 12 14 Average Carried 8 | 3 7 8 9 9 12 Final Capacity 15 | 8 8 10 10 15 15 Final Carried 12 | 4 8 9 10 12 12 Class Distribution -------------------- 89% | Mutant 9% | Tank Dominant Class ---------------- Mutant | -10/Materials Mutant | -10/Mines Mutant | -10/Subcaves Mutant | -8/Materials Tank | -7/Factory Resources | -11 -10 -10 -10 -8 -7 ----------- Run | Yrd Mat Min Sub Mat Fac Matter Collected 761 | 187 257 18 138 136 25 Remotely . | . . . . . . Salvage Created 1011 | 50 427 47 124 140 223 Parts 57 | 3 22 4 9 8 11 Haulers Intercepted 3 | . 1 . . 1 1 Recyclers Shooed . | . . . . . . Parts Field Recycled . | . . . . . . Retrieved Matter . | . . . . . . Parts Self-Destructed 8 | . . . 8 . . Prevented . | . . . . . . Kills | -11 -10 -10 -10 -8 -7 ------- Run | Yrd Mat Min Sub Mat Fac Combat Hostiles Destroyed 21 | . 7 3 7 1 3 Guns 14 | . 7 3 3 1 . Cannons 5 | . . . 4 . 1 AOE 1 | . . . . . 1 Classes Destroyed 7 | 1 4 . 1 . 1 Hauler 3 | . 1 . . 1 1 Recycler 2 | 1 1 . . . . Watcher 4 | . 3 . . 1 . Swarmer 9 | . 2 3 4 . . Grunt 8 | . 5 . . 1 2 Programmer 1 | . . . . . 1 Subdweller 3 | . . . 3 . . Best Kill Streak 6 | 1 6 3 4 1 2 Combat Bots Only 4 | . 3 3 4 1 2 Max Kills in Single Turn 2 | 1 2 1 1 1 1 Gunslinging 1 | . 1 . . . . Exploded 1 | . . . . . 1 Melee . | . . . . . . Uniques/NPCs Destroyed . | . . . . . . Combat | -11 -10 -10 -10 -8 -7 -------- Run | Yrd Mat Min Sub Mat Fac Hostile Shots Fired 133 | . 29 6 70 1 27 Missed 43 | . 11 3 20 1 8 Damage Taken 1046 | . 162 18 504 12 350 Core 234 | . 67 6 126 . 35 Absorbed by Shields 60 | . . . 60 . . Ignored by Resistances 324 | . 51 6 163 4 100 Core Remaining (%) 73 | 100 . . 20 100 . Volleys Fired 76 | 5 28 3 25 3 12 Largest 3 | 1 2 2 2 2 3 Hottest 200 | 50 100 46 200 100 163 Shots Fired 147 | 5 56 6 39 6 35 Gun 121 | 5 56 6 24 6 24 Cannon 11 | . . . . . 11 Launcher . | . . . . . . Special 15 | . . . 15 . . Kinetic 78 | . 48 6 24 . . Thermal 28 | 5 8 . 15 . . Explosive . | . . . . . . Electromagnetic 41 | . . . . 6 35 Robot Hit Streak 29 | 2 22 6 29 8 9 Robot Miss Streak 2 | 1 1 . 1 2 2 Penetration Max . | . . . . . . Secondary Targets 2 | . 1 1 . . . Max Gunslinging Chain 1 | . 1 1 . . . Shots Hit Robots 121 | 4 41 5 32 8 31 Core Hits 51 | 2 17 3 11 5 13 Critical Kills . | . . . . . . Critical Parts Destroyed 1 | . 1 . . . . Critical Strikes 1 | . 1 . . . . Destroy 1 | . 1 . . . . Melee Attacks 5 | . . . . 5 . Impact . | . . . . . . Slashing 5 | . . . . 5 . Piercing . | . . . . . . Sneak Attacks . | . . . . . . Combat Hostiles . | . . . . . . Follow-up Attacks . | . . . . . . Damage Inflicted 2118 | 48 651 82 474 255 608 Guns 1553 | 48 651 82 322 132 318 Cannons 163 | . . . . . 163 Explosions 164 | . . . . 37 127 Melee 86 | . . . . 86 . Ramming . | . . . . . . Kinetic 1005 | . 601 82 322 . . Thermal 414 | 48 50 . 152 37 127 Explosive . | . . . . . . Electromagnetic 613 | . . . . 132 481 Impact . | . . . . . . Slashing 86 | . . . . 86 . Piercing . | . . . . . . Highest Corruption 3 | . . . . . 3 Average Corruption 1 | . . . . . 1 Corruption Purged . | . . . . . . Corruption Blocked . | . . . . . . Overload Shots . | . . . . . . Overflow Damage 1 | . . . . . 1 Projectiles . | . . . . . . Explosions 1 | . . . . . 1 Melee . | . . . . . . Knockbacks . | . . . . . . Impact . | . . . . . . Kinetic . | . . . . . . Secondary . | . . . . . . Self-Inflicted Damage 32 | . . . . 12 20 Shots 2 | . . . . 1 1 Rammed . | . . . . . . Targets Rammed . | . . . . . . Kicked . | . . . . . . Crushed . | . . . . . . Highest Temperature 438 | 30 78 10 40 72 438 Average Temperature 127 | 15 23 7 38 36 213 Received Heat Transfer 233 | . 102 . 104 . 27 Effects 5 | . . . . . 5 Energy Bleed 1 | . . . . . 1 Interference 3 | . . . . . 3 Damage (minor) 1 | . . . . . 1 Siege Activations . | . . . . . . Robots Corrupted 1 | . . . . . 1 Combat Hostiles 1 | . . . . . 1 Parts Fried 1 | . . . . . 1 Impact Corruptions . | . . . . . . Robots Melted . | . . . . . . Combat Hostiles . | . . . . . . Parts Melted 4 | . . . 3 1 . Heat Transferred 1636 | 148 148 . 1040 50 250 Parts Sabotaged . | . . . . . . Parts Stolen . | . . . . . . Parts Stripped . | . . . . . . Power Chain Reactions 3 | . . . . 1 2 Alert | -11 -10 -10 -10 -8 -7 ------- Run | Yrd Mat Min Sub Mat Fac Peak Influence 216 | 5 216 93 . 62 94 Initial 24 | . 2 23 . . 24 Average 37 | 1 68 32 . 18 29 Maximum Alert Level 1 | . 1 . . . . Low Security (%) 99 | 100 98 100 . 100 100 Level 1 . | . 1 . . . . Level 2 . | . . . . . . Level 3 . | . . . . . . Level 4 . | . . . . . . Level 5 . | . . . . . . High Security . | . . . . . . Max Security . | . . . . . . Squads Dispatched 4 | . . . . 2 2 Investigation 1 | . . . . 1 . Extermination . | . . . . . . Reinforcement 3 | . . . . 1 2 Assault . | . . . . . . Garrison . | . . . . . . Intercept . | . . . . . . Searches Triggered . | . . . . . . Construction Impeded . | . . . . . . Haulers Reinforced 1 | . . . . . 1 Active Scanning Responses . | . . . . . . Cargo Convoy Interrupts . | . . . . . . Stealth | -11 -10 -10 -10 -8 -7 --------- Run | Yrd Mat Min Sub Mat Fac Distress Signals 4 | . 2 . . 2 . Communications Jammed . | . . . . . . Distress Signals . | . . . . . . Times Spotted 36 | . 13 3 10 5 5 Peak Tracking Total 6 | . 4 3 6 4 2 Tactical Retreats 3 | . 1 . 2 . . Traps | -11 -10 -10 -10 -8 -7 ------- Run | Yrd Mat Min Sub Mat Fac Traps Triggered . | . . . . . . Indirectly . | . . . . . . Trap Hack Attempts . | . . . . . . Triggered . | . . . . . . Disarmed . | . . . . . . Reprogrammed . | . . . . . . Reused . | . . . . . . Traps Extracted . | . . . . . . Installed 3 | . . 3 . . . Triggered . | . . . . . . Most Traps Carried 2 | . . 2 1 1 1 Machines | -11 -10 -10 -10 -8 -7 ---------- Run | Yrd Mat Min Sub Mat Fac Machines Disabled . | . . . . . . Max in Single Turn . | . . . . . . Machines Repaired . | . . . . . . Machines Dismantled . | . . . . . . Machines Sabotaged . | . . . . . . Overloaded Fab Kills . | . . . . . . Hacking | -11 -10 -10 -10 -8 -7 --------- Run | Yrd Mat Min Sub Mat Fac Machines Accessed 6 | . 4 . . 1 1 Terminals 5 | . 4 . . . 1 Fabricators . | . . . . . . Repair Stations . | . . . . . . Recycling Units . | . . . . . . Scanalyzers 1 | . . . . 1 . Garrison Access . | . . . . . . Total Hacks 25 | . 20 . . 3 2 Successful 13 | . 10 . . 2 1 Failed 11 | . 9 . . 1 1 Catastrophic . | . . . . . . Database Lockouts 1 | . 1 . . . . Manual 16 | . 16 . . . . Terminals 22 | . 20 . . . 2 Fabricators . | . . . . . . Repair Stations . | . . . . . . Recycling Units . | . . . . . . Scanalyzers 3 | . . . . 3 . Garrison Access . | . . . . . . Terminal Hacks 11 | . 10 . . . 1 Record 1 | . . . . . 1 Robot Analysis 6 | . 6 . . . . Prototype ID Bank 2 | . 2 . . . . Branch Access Points 1 | . 1 . . . . Terminal Index 1 | . 1 . . . . Fabricator Hacks . | . . . . . . Repair Station Hacks . | . . . . . . Recycling Unit Hacks . | . . . . . . Scanalyzer 2 | . . . . 2 . Insert Component 1 | . . . . 1 . Analyze 1 | . . . . 1 . Garrison Access Hacks . | . . . . . . Unauthorized Hacks . | . . . . . . Terminals . | . . . . . . Fabricators . | . . . . . . Repair Stations . | . . . . . . Recycling Units . | . . . . . . Scanalyzers . | . . . . . . Garrison Access . | . . . . . . Data Cores Recovered . | . . . . . . Used . | . . . . . . Hacking Detections 5 | . 3 . . 1 1 Full Trace Events . | . . . . . . Feedback Events . | . . . . . . Feedback Blocked . | . . . . . . Robot Schematics Acquired . | . . . . . . Robots Built . | . . . . . . Authchips . | . . . . . . Time . | . . . . . . Total Robot Build Rating . | . . . . . . Part Schematics Acquired 1 | . . . . 1 . Parts Built . | . . . . . . Authchips . | . . . . . . Time . | . . . . . . Total Part Build Rating . | . . . . . . Parts Repaired . | . . . . . . Time . | . . . . . . Parts Recycled . | . . . . . . Recycled Matter . | . . . . . . Retrieved Matter . | . . . . . . Retrieved Components . | . . . . . . Parts Scanalyzed 1 | . . . . 1 . Part Schematics Acquired 1 | . . . . 1 . Parts Damaged . | . . . . . . Bothacking | -11 -10 -10 -10 -8 -7 ------------ Run | Yrd Mat Min Sub Mat Fac Used RIF Installer . | . . . . . . Robots Hacked . | . . . . . . Non-combat . | . . . . . . Combat . | . . . . . . Robot Hacks Applied . | . . . . . . Relay Couplers Released . | . . . . . . Fabnet Peak Effective % . | . . . . . . Robots Rewired . | . . . . . . Allies Hacked . | . . . . . . Hacks Repelled . | . . . . . . Allies | -11 -10 -10 -10 -8 -7 -------- Run | Yrd Mat Min Sub Mat Fac Total Allies . | . . . . . . Largest Group . | . . . . . . Highest-Rated Group . | . . . . . . Highest-Rated Ally . | . . . . . . Total Orders . | . . . . . . Ally Attacks . | . . . . . . Total Damage . | . . . . . . Kills . | . . . . . . Allies Corrupted . | . . . . . . Allies Melted . | . . . . . . Intel | -11 -10 -10 -10 -8 -7 ------- Run | Yrd Mat Min Sub Mat Fac Robot Analysis Total 6 | . 6 . . . . Derelict Logs Recovered 3 | . . 1 2 . . Drone Launches . | . . . . . . Drone Recoveries . | . . . . . . Exploration | -11 -10 -10 -10 -8 -7 ------------- Run | Yrd Mat Min Sub Mat Fac Turns Passed 2620 | 62 507 911 431 333 376 Spaces Moved 1486 | 44 384 511 232 150 165 Core 3 | 3 . . . . . Treads 384 | . . . 69 150 165 Legs . | . . . . . . Wheels 1099 | 41 384 511 163 . . Hover . | . . . . . . Flight . | . . . . . . Fastest Speed 50 | 50 90 100 100 160 160 Average Speed 125 | 87 98 100 140 192 199 Slowest Speed 240 | 90 100 100 240 240 240 Overloaded Moves . | . . . . . . Propulsion Burnouts . | . . . . . . Robots Hopped . | . . . . . . Cave-ins Triggered . | . . . . . . Exploration Rate (%) 34 | 3 73 77 19 27 10 Regions Visited 5 Branch Regions 2 Pre-discovered Areas 1 | . . . 1 . . Known Exits Taken 3 | . 1 1 . 1 . Unknown Exits Taken 2 | 1 . . 1 . . Scrap Searched 4 | . . 1 3 . . Spaces Dug 3 | . . . . 3 . Terrain Destroyed 14 | . . . . 11 3 Melee 3 | . . . . 3 . Projectile . | . . . . . . AOE 11 | . . . . 8 3 Terrain Rammed . | . . . . . . Walls Destroyed . | . . . . . . Machines Disabled . | . . . . . . Actions | -11 -10 -10 -10 -8 -7 --------- Run | Yrd Mat Min Sub Mat Fac Total 2079 | 61 459 907 287 181 184 Wait 419 | . 27 382 7 1 2 Move 1481 | 43 383 510 231 149 165 Hop . | . . . . . . Pick Up 45 | 8 11 4 11 9 2 Fast Attach 2 | 1 . . . 1 . Attach 22 | 4 4 . 5 7 2 Detach 1 | . . . . 1 . Swap 9 | . 1 1 4 2 1 Drop 16 | . 5 4 4 3 . Fire 76 | 5 28 3 25 3 12 Melee 5 | . . . . 5 . Ram . | . . . . . . Kick . | . . . . . . Crush . | . . . . . . Escape Stasis . | . . . . . . Rewire . | . . . . . . Trap 3 | . . 3 . . . Miscellaneous . | . . . . . . Route ------- -11/Scrapyard -10/Materials (discovered 4 exits: *Mat x2 / *Min x2) -10/Mines (discovered 2 exits: *Mat / *Sub) -10/Subcaves (discovered 2 exits: *Mat / [*Rec]) -8/Materials (discovered 2 exits: *Fac x2) -7/Factory History --------- Turn | Location | Event 14 | -11/Scrapyard | Discovered new exit (range 16) 63 | -11/Scrapyard | Entered Materials 111 | -10/Materials | Discovered new exit (range 12) 266 | -10/Materials | Discovered new exit (range 15) 304 | -10/Materials | Build established: Mutant 305 | -10/Materials | Central database locked down 313 | -10/Materials | Identified exit to Mines 375 | -10/Materials | Discovered new exit (range 16) 418 | -10/Materials | Identified exit to Materials 570 | -10/Materials | Entered Mines 600 | -10/Mines | Found a hidden stash of uninstalled traps 606 | -10/Mines | Learned location of 2 exits from Materials 619 | -10/Mines | Met a Derelict bent on vengeance 692 | -10/Mines | Discovered exit to Materials (range 4) 795 | -10/Mines | Assembled infested the area 1472 | -10/Mines | Discovered new exit (range 10) 1480 | -10/Mines | Identified exit to Subcaves 1481 | -10/Mines | Entered Subcaves 1492 | -10/Subcaves | Learned Materials stockpile data 1514 | -10/Subcaves | Disturbed a concealed Subdweller 1595 | -10/Subcaves | Discovered new exit (range 14) 1683 | -10/Subcaves | Discovered new exit (range 9) 1723 | -10/Subcaves | Core integrity fell below 50% 1759 | -10/Subcaves | Lost 6 parts (1p2n1u2w) 1842 | -10/Subcaves | Learned location of Storage (-7) 1912 | -10/Subcaves | Entered Materials 1912 | -8/Materials | Evolved 4 slots: Propulsion x1, Utility x2, Weapon x1 1913 | -8/Materials | Identified exit to Factory 2119 | -8/Materials | Met 7R-MNS 2245 | -8/Materials | Entered Factory 2245 | -7/Factory | Evolved 2 slots: Power x1, Propulsion x1 2246 | -7/Factory | Caught up to 7R-MNS 2370 | -7/Factory | Noticed a derelict Sapper rigging charges 2621 | -7/Factory | Self-destructed Last Messages --------------- 02603_ R-06 Scavenger collects Shock Rifle. 02605_ K-01 Serf collects debris. 02607_ R-06 Scavenger collects Shock Rifle. 02609_ K-01 Serf collects debris. 02610_ R-06 Scavenger collects Mic. Nuclear Core. 02610_ R-06 Scavenger collects Imp. Heat Sink. 02613_ K-01 Serf collects debris. 02614_ R-06 Scavenger collects Target Analyzer. 02614_ R-06 Scavenger collects Remote Datajack. 02617_ R-06 Scavenger collects Gravmag System. 02617_ Chain reaction triggered in Lgt. Ion Engine. 02617_ Destroyed Tractor Beam. 02617_ G-47 Trooper destroyed. 02620_ Overheating: System interference. 02620_ Hvy. EM Shotgun temporarily disabled. 02620_ EM Pulse Cannon temporarily disabled. 02620_ Hvy. EM Shotgun temporarily disabled. 02620_ K-01 Serf collects debris. Map ----- +----------------------------------------------------+ | ?????????????????????????????????????????????????? | | ?????????????????????????????????????????????????? | | ?????????????????????????????????????????????????? | | ?????????????????????????????????????????????????? | | ?????????????????????????????????????????????????? | | ?????????????????????????????????????????????????? | | ????????????????????? ?????????????????????????? | | ???????????????????#w ?????????????????????????? | | ???????????????????# ?????????????????????????? | | ???????????????????# ?????????????????????????? | | ???????????????????# ?????????????????????????? | | ???????????????????# ????????????????????????? | | ???????????????????# ????????????????????????? | | ???????????????????#k ??????????????????##??#?? | | ???????????????????# ????????????????? ??/?? | | ???????????????????# ?????????????????"""" ??? | | ?????????#+######### ?????????????????"S"" ??? | | ???????? ?????????????????" ""???? | | ????????? ????????????????? ???? | | ???????????? ?????????????????! ????? | | ?????????????? k a ##???????????????! ????? | | ????????????????? g= ;#??????????????? ?????? | | ???????????????????# r*;#??????????????? ?????? | | ???????????????????# ;################+####??? | | ???????????????????# r k % #??? | | ???????????????????+ @ r #??? | | ???????????????????# ! % #??? | | ???????????????????# #??? | | ???????????????????# #??? | | ???????????????????########################k####?? | | ??????????????????????????????????# !== #?? | | ??????????????????????????????????# =%= #?? | | ??????????????????????????????????# == #?? | | ??????????????????????????????????# #?? | | ??????????????????????????????????# "" #?? | | ??????????????????????????????????# "" " #?? | | ??????????????????????????????????# """ "" #?? | | ??????????????????????????????????# """ "" #?? | | ??????????????????????????????????# """ "" #?? | | ??????????????????????????????????# #?? | | ??????????????????????????????????# #?? | | ??????????????????????????????????# #?? | | ??????????????????????????????????#####+#+######## | | ??????????????????????????????????????# | | ??????????????????????????????????????# | | ??????????????????????????????????????# "" | | ??????????????????????????????????????# ^ "" | | ??????????????????????????????????????# "" | | ??????????????????????????????????????####+### "" | | ?????????????????????????????????????????????# | +----------------------------------------------------+ Best States ------------- Heat Dissipation 34 Energy Generation 19 Energy Capacity 290 Matter Stores 300 Matter Capacity 300 Sight Range 21 Terrain Scan Density 10 Armor Coverage 225 Resistance: KI 20 Resistance: TH 20 Resistance: EX 20 Resistance: EM 20 Resistance: I 20 Resistance: S 20 Resistance: P 20 Evasion (%) 42 Recoil Reduction 3 Offensive Hacking 10 Item Schematics ----------------- Ripper | -8/Materials | Scanalyzed Robot Schematics ------------------ None Fabricated ------------ Nothing Alien Tech Used ----------------- None Achievements -------------- None Challenges ------------ None Game ------ Seed DisassembledShieldBeamcaster Manual? 0 Play Time 00:29:45 Cumulative 23.9 hours Start 2024.08.13 @ 21:22:13 End 2024.08.14 @ 17:28:01 Sessions 5 Manual Loads 0 Difficulty Adventurer Special Mode None Game No. 11 Rogue 0 Adventurer 11 Explorer 0 Win Type - Total 0 Types 0/0/0/0/0/0/0/0/0 Lore% 15 Gallery% 30 Achievement% 31 Wizard Run 0 Options --------- Layout 1 ASCII 0 Keyboard 0 Movement Numpad Keybinds 0 Fullscreen 1 Font 48/Smallcaps Map View 50x35 Zoom Use 0% Tactical HUD 1 Map Filters NONE Filters NONE Steam 1 RUN: feef8db1-eff2-4c36-b7f5-4db3a00e1279